fUSD/lending_fUSD_20240301
["ID","MTS","AMOUNT","RATE_DAILY","PERIOD"]
[315902856,1709256631635,-437.70946532,0.0002,3]
[315902857,1709256631645,-2546.34,0.00020499,2]
[315902858,1709256631654,-192.29,0.00020517,2]
[315902859,1709256631664,-165.95,0.00020608,2]
[315902860,1709256631673,-216.0,0.00020658,2]
[315902861,1709256631683,-784.0,0.00020818,2]
[315902862,1709256631692,-164.49,0.00020841,10]
[315902863,1709256631702,-157.51,0.00020879,2]
[315902864,1709256631711,-210.45,0.00021,2]
[315902865,1709256631721,-1161.34,0.00021014,2]
[315902866,1709256631731,-160.85,0.00021096,2]
[315902867,1709256631740,-150.0,0.00021103,2]
[315902868,1709256631749,-895.88,0.00021104,2]
[315902869,1709256631761,-406.91,0.00021104,2]
[315902870,1709256631770,-577.05490194,0.00021197,2]
[315902871,1709256631783,-1000.0,0.00021197,2]
[315902872,1709256631792,-17110.7871805,0.00021197,2]
[315902873,1709256631810,-308.807424,0.00021197,2]
[315902874,1709256631821,-3969.97678967,0.00021197,2]
[315902875,1709256631832,-389.6360011,0.00021197,2]
[315902876,1709256631843,-8575.58013532,0.00021197,2]
[315902877,1709256631877,-1314.39513694,0.00021197,2]
[315902878,1709256631889,-322.16141251,0.00021197,2]
[315902879,1709256631900,-2005.46786835,0.00021197,2]
[315902880,1709256631912,-1288.64349942,0.00021197,2]
[315902881,1709256631923,-604.7260143,0.00021197,2]
[315902882,1709256631934,-1386.72675487,0.00021197,2]
[315902883,1709256631952,-517.81408302,0.00021197,2]
[315902884,1709256631962,-544.71,0.00021287,3]
[315902885,1709256631971,-273.7,0.00021287,3]
[315902886,1709256631981,-821.15,0.00021287,3]
[315902887,1709256631990,-565.02146692,0.00021296,2]
[315902888,1709256631999,-10747.12188809,0.00021297,2]
[315902889,1709256632012,-667.61891395,0.00021297,2]
[315902892,1709256632033,-680.26372548,0.00021297,2]
[315902927,1709256638802,-157.51,0.00020628,2]
[315902928,1709256638812,-515.33608743,0.00021296,2]
[315902929,1709256638822,-21408.04878194,0.00021297,2]
[315902932,1709256640780,-1012.60729843,0.00021297,2]
[315902933,1709256640791,-425.61493632,0.00021297,2]
[315902980,1709256641365,4882.46790923,0.00015755,2]
[315902995,1709256644074,-710.09603148,0.00021297,2]
[315902997,1709256644086,-156815.00856798,0.00021297,2]
[315903003,1709256644170,-2020.30670001,0.00021297,2]
[315903054,1709256645703,-211.07238593,0.00021296,2]
[315903056,1709256645712,-11183.89386407,0.00021297,2]
[315903068,1709256645821,-2229.61149941,0.00021297,2]
[315903104,1709256661376,4882.46790923,0.00015755,2]
[315903105,1709256663987,224.42271,0.00015755,2]
[315903106,1709256681369,4882.46790923,0.00015755,2]
[315903107,1709256699372,4882.46790923,0.00015755,2]
[315903108,1709256719389,4882.46790923,0.00015755,2]
[315903109,1709256739397,4882.46790923,0.00015755,2]
[315903110,1709256763790,4882.46790923,0.00015755,2]
[315903111,1709256783354,1548.55923228,0.00015755,2]
[315903112,1709257405620,7761.96008352,0.00015,14]
[315903131,1709257831690,-1050.55811626,0.00018795,2]
[315903132,1709257831700,-184.95689563,0.00018796,2]
[315903133,1709257831851,-4.44310437,0.00018796,2]
[315903134,1709257831861,-211.07238593,0.0002058,2]
[315903135,1709257831871,-827.2,0.00020581,2]
[315903136,1709257831880,-218.49,0.00020691,2]
[315903137,1709257831890,-157.51,0.0002071,2]
[315903138,1709257831899,-172.8,0.00020777,2]
[315903139,1709257831909,-90.82331707,0.00020777,2]
[315903140,1709257831928,-75.12668293,0.00020777,2]
[315903141,1709257831938,-203.0,0.000208,2]
[315903142,1709257831948,-164.49,0.0002094,10]
[315903143,1709257831958,-438.0,0.00021053,2]
[315903144,1709257831968,-189.4,0.0002106,2]
[315903145,1709257831977,-150.0,0.00021084,2]
[315903146,1709257831987,-151.33193,0.00021084,2]
[315903147,1709257831996,-32.22537104,0.00021087,2]
[315903148,1709257832009,-792.99802951,0.00021087,2]
[315903149,1709257832029,-130.15399945,0.00021087,2]
[315903150,1709257832039,-300.0,0.00021089,2]
[315903151,1709257832049,-675.64096017,0.0002109,2]
[315903152,1709257832077,-2901.42406824,0.0002109,2]
[315903153,1709257832092,-414.47229005,0.0002109,2]
[315903155,1709257837644,-211.07238593,0.0001999,2]
[315903156,1709257837654,-853.27553943,0.0002109,2]
[315903157,1709257837717,-846.97995316,0.0002109,2]
[315903158,1709257837812,-22340.21908895,0.0002109,2]
[315903159,1709257837821,-181.56046074,0.00021135,2]
[315903160,1709257837831,-267.90825056,0.00021135,2]
[315903161,1709257837841,-200.4318014,0.00021191,2]
[315903162,1709257837850,-455.5351,0.00021197,2]
[315903163,1709257837860,-30784.36418594,0.00021296,2]
[315903164,1709257837870,-1245.42225707,0.00021436,6]
[315903165,1709257837881,-17715.32859146,0.00021439,6]
[315903166,1709257837891,-70612.00612969,0.00021446,6]
[315903167,1709257837901,-70612.00612969,0.00021447,6]
[315903168,1709257837915,-17715.32859146,0.00021448,6]
[315903169,1709257837925,-70612.00612969,0.00021461,6]
[315903170,1709257837934,-1245.42225707,0.00021463,6]
[315903171,1709257837944,-17715.32859146,0.00021468,6]
[315903172,1709257837954,-4172.96794085,0.00021471,6]
[315903173,1709257837987,-1034.43256174,0.00021471,6]
[315903174,1709257838000,-12507.92808887,0.00021471,6]
[315903175,1709257838010,-1245.42225707,0.00021474,6]
[315903176,1709257838019,-43347.69730081,0.00021478,6]
[315903177,1709257838031,-27264.30882888,0.00021478,6]
[315903178,1709257838041,-1245.42225707,0.00021479,6]
[315903179,1709257838051,-522.20484128,0.00021482,6]
[315903181,1709257838063,-522.20484128,0.00021482,6]
[315903183,1709257838073,-522.20484128,0.00021485,6]
[315903185,1709257838083,-522.20484128,0.00021491,6]
[315903186,1709257838093,-1205.20013861,0.00021578,2]
[315903187,1709257838103,-407.129,0.00021717,2]
[315903188,1709257838112,-596.1191,0.00021717,2]
[315903190,1709257838123,-192.13714274,0.00021717,2]
[315903191,1709257838133,-3392.35124723,0.00021798,3]
[315903194,1709257838143,-272.8,0.00021807,3]
[315903195,1709257838152,-756.81726321,0.00021807,3]
[315903198,1709257838165,-61.60273679,0.00021807,3]
[315903200,1709257838174,-500.0,0.00021816,2]
[315903201,1709257838184,-76.17945487,0.00021816,2]
[315903211,1709257840994,-380.6212104,0.00021816,2]
[315903212,1709257841007,-43.19933473,0.00021816,2]
[315903213,1709257841018,-207.47084967,0.00021816,2]
[315903214,1709257841030,-255.55062946,0.00021816,2]
[315903215,1709257841043,-6.11336363,0.00021816,2]
[315903216,1709257841053,-410.73525691,0.00021817,2]
[315903223,1709257842841,-422.01776449,0.00021817,2]
[315903286,1709257846070,-294.83806546,0.00021817,2]
[315903294,1709258099603,1000.0,0.00016,2]
[315903301,1709258985229,248.84,0.00025111,120]
[315903310,1709259034928,-170.46,0.00018765,2]
[315903311,1709259034938,-373.56,0.00018888,2]
[315903313,1709259034950,-883.70362788,0.00018888,2]
[315903315,1709259034959,-564.03257777,0.00018889,2]
[315903317,1709259034970,-175.42437989,0.00018889,2]
[315903318,1709259034979,-320.7767072,0.00018889,2]
[315903320,1709259034991,-418.68025046,0.00018889,2]
[315903322,1709259035000,-462.83344045,0.00018889,2]
[315903324,1709259035012,-276.62351721,0.00018889,2]
[315903326,1709259035022,-211.07238593,0.0001999,2]
[315903327,1709259035031,-300.0,0.00019999,2]
[315903329,1709259035041,-150.0,0.00019999,2]
[315903331,1709259035051,-2750.0,0.0002,3]
[315903333,1709259035060,-661.76,0.00020736,2]
[315903334,1709259035070,-165.95,0.00020829,2]
[315903336,1709259035080,-338.24,0.00020831,2]
[315903338,1709259035090,-262.425992,0.00021,2]
[315903340,1709259035099,-170.46,0.00021028,2]
[315903341,1709259035109,-202.0,0.00021155,2]
[315903342,1709259035119,-164.49,0.0002118,10]
[315903343,1709259035128,-60.26475594,0.00021438,6]
[315903344,1709259035155,-6232.90965334,0.00021438,6]
[315903345,1709259035164,-393.97335361,0.00021445,6]
[315903346,1709259035277,-1066.32955224,0.00021445,6]
[315903347,1709259035289,-373.8674926,0.00021445,6]
[315903348,1709259035301,-503.34835601,0.00021445,6]
[315903349,1709259035318,-501.6156142,0.00021445,6]
[315903350,1709259035337,-2143.74356083,0.00021445,6]
[315903351,1709259035349,-1310.29647979,0.00021445,6]
[315903352,1709259035359,-4111.6413239,0.00021474,6]
[315903353,1709259035371,-2181.53308538,0.00021474,6]
[315903354,1709259035381,-6293.17440928,0.0002148,6]
[315903355,1709259035392,-168.53,0.00021493,2]
[315903356,1709259035401,-151.0,0.000215,2]
[315903357,1709259035411,-18585.66764465,0.00021517,2]
[315903358,1709259035432,-536.35995639,0.00021517,2]
[315903359,1709259035456,-351.10664586,0.00021517,2]
[315903360,1709259035472,-610.54383124,0.00021517,2]
[315903361,1709259035484,-517.35048957,0.00021517,2]
[315903362,1709259035495,-500.0,0.00021517,2]
[315903363,1709259035506,-858.4361993,0.00021517,2]
[315903364,1709259035517,-667.74433299,0.00021517,2]
[315903365,1709259035527,-237.13950653,0.00021617,2]
[315903366,1709259035553,-74.43569347,0.00021617,2]
[315903369,1709259035562,-505.38615579,0.0002169,3]
[315903373,1709259035578,-40.21384421,0.0002169,3]
[315903375,1709259035587,-251.13167284,0.00021696,2]
[315903377,1709259035599,-517.5,0.00021696,2]
[315903395,1709259037826,-164.49,0.00020896,10]
[315903396,1709259037836,-1733.64832716,0.00021696,2]
[315903397,1709259037846,-221.06379354,0.00021698,2]
[315903398,1709259037855,-537.7589,0.00021698,2]
[315903399,1709259037864,-2013.77898883,0.000217,2]
[315903400,1709259037876,-11577.22526999,0.000217,2]
[315903401,1709259037888,-105563.02874118,0.000217,2]
[315903402,1709259037898,-5000.0,0.000217,2]
[315903403,1709259037907,-173.74601249,0.000217,2]
[315903404,1709259037916,-196.59610506,0.000217,2]
[315903405,1709259037925,-14291.02844518,0.000217,2]
[315903406,1709259037935,-3143.98,0.000217,2]
[315903407,1709259037944,-217.05043381,0.000217,2]
[315903408,1709259038101,-8816.92449985,0.000217,2]
[315903409,1709259038186,-219.60320739,0.000217,3]
[315903410,1709259038197,-516.996,0.00021717,2]
[315903411,1709259038206,-625.21362675,0.00021717,2]
[315903412,1709259038217,-14291.02844514,0.00021785,2]
[315903413,1709259038227,-421.0,0.00021796,2]
[315903414,1709259038237,-88087.29116625,0.00021798,2]
[315903415,1709259038247,-526.48188274,0.00021799,2]
[315903416,1709259038256,-2950898.11258405,0.000218,4]
[315903417,1709259038268,-1557.35318063,0.000218,4]
[315903418,1709259038280,-311.184893,0.000218,4]
[315903419,1709259038301,-2206.31798147,0.000218,4]
[315903420,1709259038332,-556.374,0.000218,4]
[315903421,1709259038344,-360.96017206,0.000218,4]
[315903422,1709259038383,-28765.68766717,0.000218,4]
[315903423,1709259038406,-2568.38777414,0.000218,4]
[315903426,1709259041229,-2446.172687,0.000218,4]
[315903604,1709259043004,-292.142,0.000218,4]
[315903605,1709259043017,-325.7302,0.000218,4]
[315903606,1709259043030,-263.905,0.000218,4]
[315903607,1709259043114,-18401.04763238,0.000218,4]
[315903620,1709259046377,-306.9855957,0.000218,4]
[315903621,1709259046403,-1432.12167693,0.000218,4]
[315903622,1709259046415,-3571.431,0.000218,4]
[315903630,1709260232082,-838.17575192,0.00018148,2]
[315903631,1709260232092,-1050.55811626,0.00018153,2]
[315903632,1709260232101,-203.0,0.00018155,2]
[315903633,1709260232110,-153.41,0.00018841,2]
[315903634,1709260232120,-1821.423394,0.00018896,2]
[315903635,1709260232129,-90.50053181,0.000199,2]
[315903636,1709260232142,-73.76624545,0.000199,2]
[315903637,1709260232152,-211.07238593,0.00019999,2]
[315903638,1709260232161,-2750.0,0.0002,3]
[315903639,1709260232171,-327.96136862,0.00020759,2]
[315903640,1709260232254,-201.44863138,0.00020759,2]
[315903641,1709260232264,-470.59,0.00020822,2]
[315903642,1709260232274,-465.66,0.00020822,2]
[315903643,1709260232284,-756.92,0.00020822,2]
[315903644,1709260232293,-1559.31,0.00020822,2]
[315903645,1709260232303,-1000.0,0.00021,2]
[315903646,1709260232312,-13328.58075267,0.00021,2]
[315903647,1709260232321,-153.41,0.00021105,2]
[315903648,1709260232331,-243.65638438,0.00021461,6]
[315903649,1709260232341,-243.65638438,0.00021473,6]
[315903650,1709260232351,-243.65638438,0.00021476,6]
[315903651,1709260232361,-243.65638438,0.0002148,6]
[315903652,1709260232370,-267.15099643,0.00021597,2]
[315903653,1709260232379,-1000.0,0.00021598,2]
[315903654,1709260232389,-2441.99411087,0.00021598,2]
[315903665,1709260238115,-9797.67251305,0.00021598,2]
[315903666,1709260238127,-503.2484016,0.00021598,2]
[315903667,1709260238139,-1518.40106915,0.00021598,2]
[315903668,1709260238257,-315.83071,0.00021598,2]
[315903669,1709260238270,-1810.46233985,0.00021598,2]
[315903670,1709260238309,-2913.90764876,0.00021598,2]
[315903671,1709260238321,-1650.30040672,0.00021598,2]
[315903672,1709260238330,-253.5555,0.00021598,2]
[315903673,1709260238339,-685.71314604,0.00021599,2]
[315903674,1709260238350,-224.34083381,0.000216,2]
[315903675,1709260238421,-293.24869686,0.000216,2]
[315903676,1709260238434,-482.41046933,0.000216,2]
[315903678,1709260238443,-234.12892991,0.000216,2]
[315903680,1709260238455,-765.87107009,0.000216,2]
[315903682,1709260238466,-234.05191191,0.000216,3]
[315903684,1709260238478,-492.27563952,0.000216,3]
[315903686,1709260238489,-273.67244857,0.000216,3]
[315903687,1709260238498,-211.78332024,0.00021698,2]
[315903688,1709260238517,-8782.72702353,0.00021698,2]
[315903689,1709260241261,-34114.53271788,0.00021698,2]
[315903690,1709260241460,-10352.971103,0.00021698,2]
[315903691,1709260241472,-6058.05196406,0.00021698,2]
[315903695,1709260243974,-3405.11952375,0.00021698,2]
[315903698,1709260246217,-6895.45958817,0.00021698,2]
[315903699,1709260246356,-2036.00478001,0.00021698,2]
[315903861,1709260627891,-155.0,0.00018813,2]
[315903862,1709260627913,-698.47979326,0.00018814,2]
[315903863,1709260627935,-153.41,0.00018818,2]
[315903864,1709260643988,-211.07238593,0.00020735,2]
[315903865,1709260644009,-576.47,0.00020736,2]
[315903866,1709260644031,-173.72,0.00020904,2]
[315903867,1709260644054,-153.41,0.00021349,2]
[315903868,1709260644076,-599.99900282,0.00021585,2]
[315903869,1709260644098,-330.17911027,0.00021596,2]
[315903870,1709260644119,-155.0,0.00021596,2]
[315903871,1709260644139,-363.90797229,0.00021596,2]
[315903872,1709260644160,-150.0,0.00021597,2]
[315903873,1709260644182,-59389.0322,0.00021598,2]
[315903874,1709260644210,-4421.3224,0.00021598,2]
[315903875,1709260644232,-1027.1726,0.00021598,2]
[315903876,1709260644254,-69578.727,0.00021598,2]
[315903877,1709260644276,-1000.0,0.000216,2]
[315903878,1709260644298,-1000.0,0.000216,3]
[315903879,1709260644319,-141337.62,0.0002167,2]
[315903880,1709260644342,-246.51059497,0.00021685,2]
[315903881,1709260644364,-211.0,0.00021697,2]
[315903882,1709260644385,-439.24770787,0.00021698,2]
[315903883,1709260644407,-196.59610505,0.00021699,2]
[315903884,1709260644429,-12465.99368398,0.00021699,2]
[315903885,1709260644464,-338.26479181,0.00021699,5]
[315903886,1709260644486,-1000.0,0.000217,2]
[315903887,1709260644507,-171.65391179,0.000217,2]
[315903888,1709260644529,-298.8651,0.000217,2]
[315903889,1709260644550,-5000.0,0.000217,2]
[315903890,1709260644571,-190000.0,0.0002175,3]
[315903891,1709260644594,-52000.0,0.0002177,2]
[315903892,1709260644616,-599.99900275,0.00021774,2]
[315903893,1709260644637,-101855.0,0.0002178,2]
[315903894,1709260644658,-2017.91035518,0.00021795,2]
[315903895,1709260644680,-285.48142069,0.00021795,2]
[315903896,1709260644701,-832.40583052,0.00021796,2]
[315903897,1709260644722,-61590.93767087,0.00021796,2]
[315903898,1709260644744,-196.06137108,0.00021799,2]
[315903899,1709260644765,-477.32132789,0.00021799,2]
[315903900,1709260644788,-1562085.42075662,0.000218,4]
[315903901,1709260644810,-3458347.92033281,0.000218,4]
[315903902,1709260644831,-70924.46237267,0.000218,2]
[315903903,1709260644853,-63093.55398717,0.000218,2]
[315903904,1709260644875,-1000.0,0.000218,4]
[315903905,1709260644898,-1000.0,0.000218,5]
[315903906,1709260644919,-1000.0,0.000218,6]
[315903907,1709260644941,-1000.0,0.000218,7]
[315903908,1709260644963,-1000.0,0.000218,8]
[315903909,1709260644984,-2000.0,0.000218,2]
[315903910,1709260645005,-200.0,0.000218,2]
[315903911,1709260645027,-203.0,0.00021805,2]
[315903912,1709260645052,-12465.99368389,0.00021809,2]
[315903913,1709260645073,-1012.78477632,0.00021815,2]
[315903914,1709260645094,-10132.10437212,0.00021815,2]
[315903915,1709260645122,-1127.85751489,0.00021816,2]
[315903916,1709260645151,-740.0,0.000219,2]
[315903917,1709260645178,-1549.51066784,0.000219,2]
[315903918,1709260645204,-2000.0,0.000219,2]
[315903919,1709260645229,-200.0,0.000219,2]
[315903920,1709260645252,-5500.0,0.000219,2]
[315903921,1709260645274,-834.72160056,0.000219,2]
[315903922,1709260645299,-8000.0,0.000219,2]
[315903923,1709260645321,-3678.28310565,0.000219,2]
[315903924,1709260645343,-4190.0,0.000219,2]
[315903925,1709260645367,-1191.30369715,0.00021915,2]
[315903926,1709260645389,-500.0,0.00021917,2]
[315903927,1709260645411,-1407.41,0.00021917,2]
[315903928,1709260645434,-506.73496155,0.00021917,2]
[315903929,1709260645455,-500.0,0.00021917,2]
[315903930,1709260645478,-218.36884618,0.00021917,2]
[315903931,1709260645500,-686.3,0.00021917,2]
[315903932,1709260645528,-500.0,0.00021917,2]
[315903933,1709260645555,-500.0,0.00021917,2]
[315903934,1709260645577,-500.0,0.00021917,2]
[315903935,1709260645601,-500.0,0.00021917,2]
[315903936,1709260645623,-505.87175467,0.00021917,2]
[315903937,1709260645646,-500.0,0.00021917,2]
[315903938,1709260645668,-500.0,0.00021917,2]
[315903939,1709260645689,-500.0,0.00021917,2]
[315903940,1709260645713,-500.0,0.00021917,2]
[315903941,1709260645736,-500.0,0.00021917,2]
[315903942,1709260645759,-500.0,0.00021917,2]
[315903943,1709260645782,-500.0,0.00021917,2]
[315903944,1709260645806,-500.0,0.00021917,2]
[315903945,1709260645828,-500.0,0.00021917,2]
[315903946,1709260645849,-500.0,0.00021917,2]
[315903947,1709260645871,-222.8282592,0.00021917,2]
[315903948,1709260645892,-563.15562884,0.00021917,2]
[315903949,1709260645913,-500.0,0.00021917,2]
[315903950,1709260645938,-500.0,0.00021917,2]
[315903951,1709260645962,-261.02725744,0.00021917,2]
[315903952,1709260645985,-500.0,0.00021917,2]
[315903953,1709260646007,-500.0,0.00021917,2]
[315903954,1709260646029,-500.0,0.00021917,2]
[315903955,1709260646054,-500.0,0.00021917,2]
[315903956,1709260646076,-500.0,0.00021917,2]
[315903957,1709260646098,-500.0,0.00021917,2]
[315903958,1709260646120,-500.0,0.00021917,2]
[315903959,1709260646142,-500.0,0.00021917,2]
[315903960,1709260646165,-500.0,0.00021917,2]
[315903961,1709260646189,-500.0,0.00021917,2]
[315903962,1709260646213,-500.0,0.00021917,2]
[315903963,1709260646235,-500.0,0.00021917,2]
[315903964,1709260646646,-500.0,0.00021917,2]
[315903965,1709260646669,-500.0,0.00021917,2]
[315903966,1709260646690,-500.0,0.00021917,2]
[315903967,1709260646711,-500.0,0.00021917,2]
[315903968,1709260646733,-500.0,0.00021917,2]
[315903969,1709260646755,-500.0,0.00021917,2]
[315903970,1709260646778,-510.33057656,0.00021917,2]
[315903971,1709260646807,-500.0,0.00021917,2]
[315903972,1709260646831,-500.0,0.00021917,2]
[315903973,1709260646853,-500.0,0.00021917,2]
[315903974,1709260646875,-500.0,0.00021917,2]
[315903975,1709260646896,-500.0,0.00021917,2]
[315903976,1709260646917,-500.0,0.00021917,2]
[315903977,1709260646939,-500.0,0.00021917,2]
[315903978,1709260646959,-500.0,0.00021917,2]
[315903979,1709260646979,-500.0,0.00021917,2]
[315903980,1709260647000,-500.0,0.00021917,2]
[315903981,1709260647022,-1009.88,0.00021917,2]
[315903982,1709260647046,-666.81,0.00021917,2]
[315903983,1709260647070,-828.26,0.00021917,2]
[315903984,1709260647091,-500.0,0.00021917,2]
[315903985,1709260647112,-500.0,0.00021917,2]
[315903986,1709260647134,-587.44,0.00021917,2]
[315903987,1709260647155,-500.0,0.00021917,2]
[315903988,1709260647177,-532.22,0.00021917,2]
[315903989,1709260647203,-500.0,0.00021917,2]
[315903990,1709260647227,-500.0,0.00021917,2]
[315903991,1709260647249,-507.6,0.00021917,2]
[315903992,1709260647272,-500.0,0.00021917,2]
[315903993,1709260647300,-500.0,0.00021917,2]
[315903994,1709260647320,-500.0,0.00021917,2]
[315903995,1709260647340,-500.0,0.00021917,2]
[315903996,1709260647364,-500.0,0.00021917,2]
[315903997,1709260647385,-742.13,0.00021917,2]
[315903998,1709260647406,-500.0,0.00021917,2]
[315903999,1709260647427,-500.0,0.00021917,2]
[315904000,1709260647447,-507.92699818,0.00021917,2]
[315904001,1709260647468,-500.0,0.00021917,2]
[315904002,1709260647489,-545.09,0.00021917,2]
[315904003,1709260647510,-500.0,0.00021917,2]
[315904004,1709260647530,-500.0,0.00021917,2]
[315904005,1709260647553,-500.0,0.00021917,2]
[315904006,1709260647574,-500.0,0.00021917,2]
[315904007,1709260647596,-774.71,0.00021917,2]
[315904008,1709260647617,-500.0,0.00021917,2]
[315904009,1709260647638,-500.0,0.00021917,2]
[315904010,1709260647658,-562.64161473,0.00021917,2]
[315904011,1709260647679,-500.0,0.00021917,2]
[315904012,1709260647701,-500.0,0.00021917,2]
[315904013,1709260647723,-500.0,0.00021917,2]
[315904014,1709260647744,-801.54,0.00021917,2]
[315904015,1709260647768,-500.0,0.00021917,2]
[315904016,1709260647788,-500.0,0.00021917,2]
[315904017,1709260647814,-621.24,0.00021917,2]
[315904018,1709260647834,-500.0,0.00021917,2]
[315904019,1709260647855,-500.0,0.00021917,2]
[315904020,1709260647875,-500.0,0.00021917,2]
[315904021,1709260647897,-500.0,0.00021917,2]
[315904022,1709260647919,-517.28,0.00021917,2]
[315904023,1709260647940,-500.0,0.00021917,2]
[315904024,1709260647961,-500.0,0.00021917,2]
[315904025,1709260647983,-500.0,0.00021917,2]
[315904026,1709260648004,-676.03,0.00021917,2]
[315904027,1709260648026,-502.38762067,0.00021917,2]
[315904028,1709260648050,-500.0,0.00021917,2]
[315904029,1709260648070,-500.0,0.00021917,2]
[315904030,1709260648092,-500.0,0.00021917,2]
[315904031,1709260648112,-359.61019115,0.00021917,2]
[315904032,1709260648134,-500.0,0.00021917,2]
[315904033,1709260648156,-500.0,0.00021917,2]
[315904034,1709260648176,-500.0,0.00021917,2]
[315904035,1709260648198,-500.0,0.00021917,2]
[315904036,1709260648219,-500.0,0.00021917,2]
[315904037,1709260648239,-500.0,0.00021917,2]
[315904038,1709260648259,-500.0,0.00021917,2]
[315904039,1709260648284,-500.0,0.00021917,2]
[315904040,1709260648307,-500.0,0.00021917,2]
[315904041,1709260648328,-540.79,0.00021917,2]
[315904042,1709260648349,-500.0,0.00021917,2]
[315904043,1709260648370,-500.0,0.00021917,2]
[315904044,1709260648392,-505.13,0.00021917,2]
[315904045,1709260648412,-500.0,0.00021917,2]
[315904046,1709260648433,-1569.21,0.00021917,2]
[315904047,1709260648455,-500.0,0.00021917,2]
[315904048,1709260648476,-500.0,0.00021917,2]
[315904049,1709260648498,-500.0,0.00021917,2]
[315904050,1709260648518,-500.0,0.00021917,2]
[315904051,1709260648539,-500.0,0.00021917,2]
[315904052,1709260648562,-500.0,0.00021917,2]
[315904053,1709260648583,-721.28,0.00021917,2]
[315904054,1709260648603,-500.0,0.00021917,2]
[315904055,1709260648626,-500.0,0.00021917,2]
[315904056,1709260648647,-500.0,0.00021917,2]
[315904057,1709260648668,-500.0,0.00021917,2]
[315904058,1709260648689,-500.0,0.00021917,2]
[315904059,1709260648710,-704.17,0.00021917,2]
[315904060,1709260648731,-500.0,0.00021917,2]
[315904061,1709260648811,-1066.59,0.00021917,2]
[315904062,1709260648833,-500.0,0.00021917,2]
[315904063,1709260648855,-500.0,0.00021917,2]
[315904064,1709260648878,-500.0,0.00021917,2]
[315904065,1709260648899,-500.0,0.00021917,2]
[315904066,1709260648923,-500.0,0.00021917,2]
[315904067,1709260648947,-744.66,0.00021917,2]
[315904068,1709260648969,-500.0,0.00021917,2]
[315904069,1709260648989,-617.41,0.00021917,2]
[315904070,1709260649010,-500.0,0.00021917,2]
[315904071,1709260649031,-500.0,0.00021917,2]
[315904072,1709260649053,-500.0,0.00021917,2]
[315904073,1709260649073,-500.0,0.00021917,2]
[315904074,1709260649094,-155.68737889,0.00021917,2]
[315904075,1709260649115,-500.0,0.00021917,2]
[315904076,1709260649136,-500.0,0.00021917,2]
[315904077,1709260649156,-500.0,0.00021917,2]
[315904078,1709260649177,-605.24,0.00021917,2]
[315904079,1709260649200,-500.0,0.00021917,2]
[315904080,1709260649222,-500.0,0.00021917,2]
[315904081,1709260649244,-500.0,0.00021917,2]
[315904082,1709260649265,-500.0,0.00021917,2]
[315904083,1709260649290,-500.0,0.00021917,2]
[315904084,1709260649315,-500.0,0.00021917,2]
[315904085,1709260649336,-500.0,0.00021917,2]
[315904086,1709260649357,-500.0,0.00021917,2]
[315904087,1709260649377,-500.0,0.00021917,2]
[315904088,1709260649398,-500.0,0.00021917,2]
[315904089,1709260649420,-500.0,0.00021917,2]
[315904090,1709260649441,-500.0,0.00021917,2]
[315904091,1709260649462,-513.29247662,0.00021917,2]
[315904092,1709260649483,-506.90842647,0.00021917,2]
[315904093,1709260649508,-500.0,0.00021917,2]
[315904094,1709260649529,-500.0,0.00021917,2]
[315904095,1709260649551,-774.52,0.00021917,2]
[315904096,1709260649573,-500.0,0.00021917,2]
[315904097,1709260649594,-500.0,0.00021917,2]
[315904098,1709260649616,-500.0,0.00021917,2]